bitfinex/quotes_ETHUSD_20240902
["timestamp","ask_amount","ask_price","bid_price","bid_amount"]
[1725237971223,0.53054413,2439.8,2439.1,2.04993]
[1725237971224,3.43961271,2439.7,2439.1,2.04993]
[1725237971433,3.43961271,2439.7,2439.1,2.13191984]
[1725237971588,4.16225252,2439.7,2439.1,2.04993]
[1725237971927,3.43961271,2439.6,2438.9,6.52309223]
[1725237972109,4.06078296,2439.5,2438.9,6.52309223]
[1725237972315,3.43961271,2439.5,2439.2,2.04981]
[1725237972633,3.43961271,2439.5,2439.1,2.04987]
[1725237973134,3.43961271,2439.5,2439.2,2.04983]
[1725237973299,3.43961271,2439.5,2439.3,2.04974]
[1725237973685,3.43961271,2439.5,2439.4,2.04968]
[1725237974525,3.43961271,2439.5,2439.3,2.04974]
[1725237974685,2.3748,2439.9,2439.4,2.13164366]
[1725237974883,2.3748,2439.9,2439.6,2.04949]
[1725237976039,2.445,2440.2,2439.8,2.04934]
[1725237976531,3.03346127,2440.2,2439.6,2.0495]
[1725237976730,3.03346127,2440.2,2439.8,2.04932]
[1725237977091,3.03346127,2440.2,2439.9,2.04925]
[1725237977292,3.03346127,2440.2,2439.8,2.04932]
[1725237977985,0.6473074,2440.1,2439.6,2.0495]
[1725237978538,5.88461271,2440.2,2439.4,2.04964]
[1725237978920,5.88461271,2440.2,2439.6,2.0495]
[1725237979838,5.88461271,2440.2,2439.7,2.04942]
[1725237979994,3.43961271,2440.1,2439.8,2.04934]
[1725237981025,4.02807398,2440.1,2439.7,2.04943]
[1725237981211,4.02807398,2440.1,2439.6,2.0495]
[1725237981549,4.02807398,2440.1,2439.4,2.04961]
[1725237981700,0.6473074,2440.0,2439.4,2.04961]
[1725237982442,7.82349271,2439.9,2439.0,2.04999]
[1725237982625,2.3346,2439.7,2438.9,2.05009]
[1725237983120,2.3346,2439.7,2439.0,2.05]
[1725237983448,0.96212927,2439.6,2439.0,2.05]
[1725237983803,0.96212927,2439.6,2439.1,2.04992]
[1725237984004,0.96212927,2439.6,2439.0,4.09994]
[1725237984204,0.96212927,2439.6,2439.0,2.04994]
[1725237984404,2.4342,2439.4,2439.0,2.04994]
[1725237985250,3.43961271,2439.7,2438.9,0.08199474]
[1725237985251,5.87381271,2439.7,2439.1,0.0819946]
[1725237985541,5.87381271,2439.7,2439.4,2.04962]
[1725237985703,3.43961271,2439.7,2439.5,2.04959]
[1725237985928,5.87381271,2440.0,2439.5,2.04959]
[1725237986288,5.87381271,2440.0,2439.6,2.04951]
[1725237986930,5.87381271,2440.0,2439.4,2.04962]
[1725237987484,5.87381271,2440.0,2439.5,2.04959]
[1725237989079,5.87381271,2440.0,2439.6,2.0495]
[1725237989717,5.87381271,2440.0,2439.7,2.04942]
[1725237990218,3.43961271,2439.9,2439.6,2.0495]
[1725237990549,3.43961271,2439.9,2439.5,2.04959]
[1725237991846,3.43961271,2439.9,2439.7,2.04943]
[1725237992249,2.3581,2440.3,2439.8,2.04927]
[1725237992444,5.79771271,2440.3,2440.0,2.0491]
[1725237992749,3.43961271,2440.3,2440.0,2.0491]
[1725237992948,2.3581,2440.6,2440.2,2.04901]
[1725237993378,2.3581,2440.6,2440.3,2.04892]
[1725237993689,2.3581,2440.6,2440.0,2.04915]
[1725237993690,2.93787127,2440.6,2440.0,2.04915]
[1725237993858,2.3581,2440.6,2440.0,4.09826]
[1725237994061,2.3581,2440.6,2440.1,2.04902]
[1725237994272,2.3581,2440.6,2440.3,2.04888]
[1725237995295,3.43961271,2440.7,2440.3,2.04888]
[1725237997585,3.43961271,2440.7,2440.1,2.13102171]
[1725237997586,3.43961271,2440.7,2440.4,2.04884]
[1725237998876,3.43961271,2440.8,2440.6,2.0486]
[1725237999176,3.43961271,2441.0,2440.7,2.04859]
[1725237999376,3.43961271,2441.0,2440.7,2.13052528]
[1725237999924,3.43961271,2441.0,2440.8,2.04849]
[1725238000224,3.43961271,2441.4,2441.0,2.04829]
[1725238000395,3.68638271,2441.4,2440.9,2.0484]
[1725238000578,0.61540827,2441.3,2440.9,2.0484]
[1725238001193,0.61540827,2441.3,2441.0,2.04833]
[1725238001402,3.43961271,2441.4,2441.1,2.04819]
[1725238001719,3.43961271,2441.4,2441.0,2.04833]
[1725238002190,2.4677,2441.5,2440.6,2.0486]
[1725238002191,3.43961271,2441.3,2440.6,2.0486]
[1725238002566,2.04844,2440.9,2440.0,2.04914]
[1725238002830,3.43961271,2440.8,2440.1,2.13104146]
[1725238003033,3.43961271,2440.8,2440.3,2.04886]
[1725238003185,3.43961271,2440.8,2440.5,2.04875]
[1725238003542,3.43961271,2440.7,2440.5,2.04875]
[1725238003825,3.43961271,2440.7,2440.4,2.04883]
[1725238004584,3.43961271,2440.7,2440.1,2.04906]
[1725238004858,3.43961271,2440.7,2440.2,2.04899]
[1725238004859,2.392,2440.6,2440.2,2.04899]
[1725238005222,2.392,2440.6,2440.2,2.049]
[1725238006019,2.392,2440.6,2440.0,2.04917]
[1725238006241,3.43961271,2440.5,2440.0,2.04917]
[1725238006416,3.43961271,2440.5,2439.9,3.0]
[1725238006417,3.43961271,2440.5,2440.2,2.04895]
[1725238006616,3.43961271,2440.5,2440.4,2.04884]
[1725238007047,3.43961271,2440.5,2440.4,4.09768]
[1725238007217,3.43961271,2440.5,2440.4,8.57073223]
[1725238009457,3.43961271,2440.5,2440.2,2.04894]
[1725238009663,3.43961271,2440.5,2440.3,2.04892]
[1725238010132,3.43961271,2440.5,2440.2,5.04894]
[1725238010344,3.43961271,2440.5,2440.0,2.04916]
[1725238010538,3.43961271,2440.5,2440.1,2.04907]
[1725238010861,3.43961271,2440.5,2440.2,2.04895]
[1725238011019,3.43961271,2440.4,2440.2,2.04895]
[1725238011224,3.43961271,2440.3,2440.0,2.04916]
[1725238011419,3.43961271,2440.3,2440.1,2.04909]
[1725238012220,3.43961271,2440.3,2440.2,2.04901]
[1725238012453,3.43961271,2440.3,2440.2,4.09802]
[1725238014451,3.43961271,2440.3,2440.2,6.14703]
[1725238014694,3.43961271,2440.9,2440.8,2.0485]
[1725238015351,3.43961271,2440.9,2439.4,0.20012654]
[1725238015557,2.3978,2440.7,2440.2,2.04897]
[1725238015797,3.0159374,2440.7,2440.2,2.04897]
[1725238015954,3.0159374,2440.7,2440.3,2.04891]
[1725238016667,3.0159374,2440.7,2440.2,2.04897]
[1725238018382,3.0159374,2440.7,2440.0,2.04916]
[1725238018591,3.0159374,2440.7,2440.1,2.04909]
[1725238019511,0.85040501,2440.6,2440.0,2.04916]
[1725238019717,0.85040501,2440.6,2440.1,2.04908]
[1725238019995,3.43961271,2440.5,2440.1,2.04908]
[1725238021775,3.43961271,2440.5,2440.2,2.04897]
[1725238022210,3.43961271,2440.5,2439.9,5.4227]
[1725238022211,3.43961271,2440.5,2440.4,4.47305223]
[1725238022560,3.43961271,2440.5,2440.1,6.52211223]
[1725238022760,5.83233398,2440.5,2439.7,2.04942]
[1725238023006,2.4012,2440.3,2439.7,2.04942]
[1725238023305,3.43961271,2440.2,2439.7,2.04935]
[1725238023486,3.43961271,2440.2,2439.5,2.04952]
[1725238023693,2.4016,2440.0,2439.3,2.04974]
[1725238024004,4.45078,2440.0,2439.3,2.04974]
[1725238024201,2.4016,2440.0,2439.4,2.04962]
[1725238024417,2.4016,2440.0,2439.3,2.04974]
[1725238024705,5.23981727,2440.0,2439.4,2.04967]
[1725238024877,5.23981727,2440.0,2439.3,2.04974]
[1725238025089,5.23981727,2440.0,2439.3,4.09944]
[1725238025520,2.3037,2439.9,2439.2,4.47305223]
[1725238025694,2.3037,2439.9,2439.1,2.04992]
[1725238025695,5.48897271,2439.8,2439.1,2.04992]
[1725238026016,2.3037,2439.6,2439.1,2.04992]
[1725238026407,2.3037,2439.6,2439.3,2.04974]
[1725238026608,3.43961271,2439.7,2439.5,2.0496]
[1725238026916,3.43961271,2439.7,2439.3,2.04974]
[1725238027535,3.43961271,2439.7,2439.5,2.04959]
[1725238027834,3.43961271,2439.7,2439.6,2.04951]
[1725238028592,3.43961271,2439.7,2439.6,4.09902]
[1725238028799,3.43961271,2440.1,2439.7,2.0494]
[1725238029039,3.43961271,2440.0,2439.7,2.13136906]
[1725238029844,3.43961271,2440.0,2439.8,2.04932]
[1725238029998,3.43961271,2440.0,2439.8,4.0986]
[1725238030339,3.43961271,2440.0,2439.9,2.04926]
[1725238030544,2.4749,2440.2,2439.6,2.04946]
[1725238030713,2.96303989,2440.2,2439.4,2.04963]
[1725238031035,2.4287,2440.0,2439.4,2.04963]
[1725238031236,2.4287,2440.0,2439.3,3.0]
[1725238031237,4.47795,2440.0,2439.3,2.04976]
[1725238031442,4.97454999,2440.0,2439.2,6.52288223]
[1725238031603,2.4287,2439.7,2439.2,6.52288223]
[1725238032258,2.4287,2439.7,2439.2,6.52282223]
[1725238033444,2.4287,2439.7,2439.2,4.47305223]
[1725238033667,19.96,2439.9,2439.6,2.04944]
[1725238033800,22.00566,2439.9,2439.4,2.04962]
[1725238034203,22.00566,2439.9,2439.2,6.52285223]
[1725238034409,2.4921,2439.8,2439.2,6.52285223]
[1725238034634,5.351735,2439.8,2439.3,2.04976]
[1725238034836,25.311735,2439.8,2439.3,2.04976]
[1725238035042,22.4521,2439.8,2439.3,2.04976]
[1725238035248,22.4521,2439.8,2439.3,2.13174322]
[1725238035561,22.4521,2439.8,2439.4,2.04962]
[1725238035719,22.4521,2439.8,2439.3,2.13167057]
[1725238035919,22.4521,2439.8,2439.5,2.04959]
[1725238036447,22.4521,2439.8,2439.7,2.04943]
[1725238036722,19.96,2439.8,2439.7,2.04943]
[1725238037962,19.96,2439.8,2439.5,2.04959]
[1725238038149,19.96,2439.8,2439.7,4.39153]
[1725238038357,19.96,2439.8,2439.7,6.44096]
[1725238038667,19.96,2439.8,2439.7,8.49039]
[1725238038839,19.96,2439.8,2439.7,9.04039]
[1725238039369,2.4936,2440.9,2439.7,9.04039]
[1725238039370,22.4536,2440.9,2440.6,2.04867]
[1725238039572,2.4936,2440.9,2440.6,2.04867]
[1725238039728,2.4936,2440.9,2440.7,2.04858]
[1725238040123,4.54169,2441.3,2440.6,2.04867]
[1725238040320,4.54178,2441.2,2440.6,2.04867]
[1725238040878,4.54178,2441.2,2440.5,2.04875]
[1725238041031,2.4936,2441.2,2440.6,2.04867]
[1725238041226,0.71998866,2441.1,2440.6,2.04867]
[1725238042133,0.71998866,2441.1,2440.5,2.04869]
[1725238042334,0.71998866,2441.1,2440.5,2.13062724]
[1725238042561,0.71998866,2441.1,2440.5,2.04869]
[1725238042767,3.0,2441.5,2440.0,7.39123]
[1725238042768,2.4936,2440.9,2440.0,5.04914]
[1725238043034,4.54219,2440.7,2440.1,3.0]
[1725238043230,2.4936,2440.4,2439.6,2.04949]
[1725238043461,2.4936,2440.2,2439.4,2.04965]
[1725238043655,2.04911,2440.1,2439.4,2.04965]
[1725238043830,2.04911,2440.1,2439.5,2.04959]
[1725238044229,2.04911,2440.1,2439.4,2.04965]
[1725238044770,2.4936,2440.2,2439.6,2.04943]
[1725238045071,0.454254,2440.1,2439.6,2.04943]
[1725238045568,2.4936,2440.2,2439.9,2.04925]
[1725238045769,2.4936,2440.4,2439.9,2.04925]
[1725238045979,4.54246,2440.4,2439.7,2.04939]
[1725238046133,0.24936,2440.3,2439.9,2.04922]
[1725238046478,2.4936,2440.4,2440.0,2.04915]
[1725238046672,19.96,2440.3,2439.9,2.04922]
[1725238047673,19.96,2440.3,2440.1,2.04908]
[1725238048137,19.96,2440.3,2440.2,2.04901]
[1725238048543,22.3062,2440.7,2440.4,2.04878]
[1725238048732,19.96,2440.7,2440.6,2.04867]
[1725238049036,2.78063,2441.4,2440.8,2.04849]
[1725238049037,19.96,2441.0,2440.8,2.04849]
[1725238049276,19.96,2441.4,2441.1,2.04821]
[1725238049482,19.96,2441.3,2441.1,2.0482]
[1725238050277,19.96,2441.3,2441.2,2.04817]
[1725238050672,19.96,2441.3,2441.1,2.0482]
[1725238051206,19.96,2441.3,2441.2,2.04817]
[1725238051357,2.3784,2441.8,2441.3,2.04808]
[1725238054375,19.96,2441.9,2441.5,2.04791]
[1725238054575,19.96,2441.8,2441.5,2.04791]
[1725238054894,21.64746854,2441.8,2441.5,2.04791]
[1725238055060,19.96,2441.8,2441.5,2.04791]
[1725238055462,19.96,2441.8,2441.6,2.0478]
[1725238057206,19.96,2441.8,2441.7,2.04775]
[1725238057627,9.3272,2442.4,2441.8,2.04766]
[1725238057628,19.96,2442.0,2441.8,2.04766]
[1725238057958,20.89272,2442.3,2441.9,2.04757]
[1725238058206,19.96,2442.3,2441.9,2.04757]
[1725238058812,22.354,2442.4,2442.1,2.04738]
[1725238058959,19.96,2442.3,2442.1,2.04738]
[1725238059402,19.96,2442.5,2442.2,2.04733]
[1725238059802,2.4916,2442.9,2442.4,2.04715]
[1725238059803,19.96,2442.8,2442.4,2.04715]
[1725238060010,19.96,2442.8,2442.3,2.04724]
[1725238060221,22.20516,2442.8,2442.1,2.12927846]
[1725238060366,22.20516,2442.8,2442.1,2.12927297]
[1725238060569,22.20516,2442.8,2442.1,2.04739]
[1725238061269,22.20516,2442.8,2442.2,2.04733]
[1725238061496,19.96,2442.7,2442.2,2.04733]
[1725238062204,19.96,2442.7,2442.2,2.12921302]
[1725238063375,19.96,2442.7,2442.2,2.04733]
[1725238064010,19.96,2442.7,2441.8,2.04763]
[1725238064011,2.04709,2442.5,2441.8,2.04763]
[1725238064410,2.4986,2442.1,2441.4,6.52098223]
[1725238064618,2.953196,2442.1,2441.5,2.0479]
[1725238064914,2.4986,2442.1,2441.5,2.0479]
[1725238065313,2.4986,2442.1,2441.4,2.04793]
[1725238065471,4.54607,2442.1,2441.1,8.79968223]
[1725238065668,22.0075,2442.0,2441.1,8.79968223]
[1725238065871,2.04767,2441.8,2441.2,2.04816]
[1725238066983,2.4986,2441.6,2441.0,2.04832]
[1725238067222,19.96,2441.5,2441.0,2.04832]
[1725238067989,22.00792,2441.5,2440.8,4.47305223]
[1725238068183,2.655435,2441.4,2440.8,2.0485]
[1725238068800,19.96,2441.3,2440.8,2.0485]
[1725238070972,19.96,2441.3,2440.6,2.04866]
[1725238071200,19.96,2441.3,2440.7,2.04858]
[1725238071424,19.96,2441.3,2440.9,2.04835]
[1725238072140,19.96,2441.3,2441.2,4.09634]
[1725238072496,19.96,2441.9,2441.6,2.04775]
[1725238072737,19.96,2441.9,2441.8,2.04766]
[1725238073240,19.96,2441.9,2441.6,2.12973202]
[1725238073450,19.96,2441.9,2441.7,2.04774]
[1725238074143,19.96,2441.9,2441.5,6.52093223]
[1725238074315,19.96,2441.9,2441.5,2.04788]
[1725238074926,19.96,2441.9,2441.6,2.04779]
[1725238075353,19.96,2441.9,2441.4,2.04797]
[1725238075655,19.96,2441.9,2441.5,0.08190664]
[1725238076125,2.3814,2441.8,2441.3,5.04808]
[1725238076560,19.96,2441.7,2441.3,5.04808]
[1725238077270,19.96,2441.7,2441.4,2.04799]
[1725238078257,19.96,2441.7,2441.2,4.47305223]
[1725238078258,2.3814,2441.8,2441.2,6.90391535]
[1725238078417,2.3814,2441.8,2441.2,4.47305223]
[1725238078617,4.42907,2441.8,2441.2,4.47305223]
[1725238078860,4.42907,2441.8,2441.2,4.85575535]
[1725238079228,24.831977,2441.8,2441.3,0.38270312]
[1725238079556,24.831977,2441.8,2441.0,0.38357059]
[1725238079760,2.4648,2441.3,2441.0,0.38357059]
[1725238079947,2.4648,2441.3,2440.8,0.38357059]
[1725238080148,2.4648,2441.3,2440.9,0.38357059]
[1725238080355,2.4648,2441.3,2440.8,0.46550224]
[1725238080577,2.4648,2441.3,2440.9,0.38357059]
[1725238080921,2.4648,2441.3,2440.8,0.38357059]
[1725238081152,24.4909677,2441.7,2441.0,2.04833]
[1725238081153,2.4536,2441.6,2441.0,2.04833]
[1725238081489,2.4536,2441.6,2441.1,0.38357059]
[1725238081619,5.14805677,2441.6,2441.1,0.38357059]
[1725238082620,5.14805677,2441.6,2441.0,0.38357059]
[1725238082621,7.19588677,2441.6,2441.0,0.38357059]
[1725238083936,7.19588677,2441.6,2441.0,3.73211194]
[1725238084131,7.19588677,2441.6,2441.0,5.78044194]
[1725238084367,5.14805677,2441.6,2441.0,5.78044194]
[1725238085163,19.96,2441.7,2441.6,2.04783]
[1725238085465,2.04724,2442.4,2441.3,3.34854135]
[1725238085466,2.3323,2442.0,2441.3,5.78017194]
[1725238085626,2.3323,2442.0,2440.1,2.04909]
[1725238085627,2.04781,2441.7,2441.2,0.38357059]
[1725238085824,2.04807,2441.4,2440.8,0.38357059]
[1725238086030,2.04807,2441.4,2440.7,2.43213059]
[1725238086272,2.048,2441.5,2440.7,2.04856]
[1725238086483,2.048,2441.4,2440.7,2.04856]
[1725238086674,2.048,2441.4,2440.8,3.34854135]
[1725238087029,0.43803,2441.5,2440.8,3.34854135]
[1725238087376,2.48595,2441.5,2440.8,3.34854135]
[1725238087591,2.734609,2441.4,2440.8,3.34854135]
[1725238089476,4.37789,2441.3,2440.5,5.78083194]
[1725238089792,4.37789,2441.3,2440.6,3.0]
[1725238089963,4.37789,2441.3,2440.6,3.38357059]
[1725238090164,2.3298,2441.3,2440.5,3.34854135]
[1725238090364,2.3298,2440.6,2440.1,0.38357059]
[1725238090613,2.3298,2440.6,2440.0,2.04917]
[1725238090614,2.3298,2440.6,2440.0,0.38357059]
[1725238090908,24.57145,2440.6,2439.9,5.39772135]
[1725238091332,2.04878,2440.5,2439.9,5.39772135]
[1725238091608,22.00878,2440.5,2439.8,2.04934]
[1725238091793,2.662023,2440.4,2439.8,2.04934]
[1725238092172,19.96,2440.5,2439.9,0.08196303]
[1725238092562,19.96,2440.5,2440.0,2.04912]
[1725238093105,2.4181,2440.3,2439.8,0.38436495]
[1725238093303,0.47248575,2440.2,2439.2,4.46945004]
[1725238093626,0.28905857,2440.1,2439.5,2.04959]
[1725238093780,2.33815857,2440.1,2439.3,2.04976]
[1725238094162,0.23381586,2440.0,2439.4,2.04967]
[1725238096086,0.23381586,2440.0,2439.5,2.04958]
[1725238096284,0.28905857,2440.1,2439.5,2.04958]
[1725238098088,0.28905857,2440.1,2439.2,6.51929004]
[1725238098089,2.3884,2439.9,2439.2,6.51929004]
[1725238098473,4.43766,2439.9,2439.2,6.51929004]
[1725238099373,4.43766,2439.9,2439.5,4.46945004]
[1725238099374,2.3884,2439.9,2439.5,4.46945004]
[1725238099714,2.4479,2440.3,2439.8,2.04934]
[1725238100012,3.41469319,2440.3,2439.8,2.1313043]
[1725238100217,2.4479,2440.3,2439.8,2.04934]
[1725238100585,2.4479,2440.3,2439.7,2.04937]
[1725238100784,2.4479,2440.3,2439.6,2.13140148]
[1725238101294,2.4479,2440.3,2439.6,2.04943]
[1725238102123,4.49683,2440.3,2439.6,2.04943]
[1725238102326,2.04913,2440.1,2439.4,2.04966]
[1725238102475,2.4479,2440.0,2439.4,2.04966]
[1725238104429,2.4479,2440.0,2439.7,2.04936]
[1725238104925,2.4479,2440.0,2439.8,2.04934]
[1725238105490,19.96,2440.2,2440.1,2.04909]
[1725238105692,19.96,2440.2,2440.1,4.09818]
[1725238107979,19.96,2440.2,2439.9,2.04925]
[1725238108406,19.96,2440.2,2439.7,2.04941]
[1725238108744,19.96,2440.2,2439.8,2.04934]
[1725238108745,2.3693,2440.1,2439.8,2.04934]
[1725238109248,19.96,2440.0,2439.8,2.04934]
[1725238111123,19.96,2440.0,2439.6,2.04951]
[1725238111940,19.96,2440.0,2439.7,2.04943]
[1725238113434,19.96,2440.0,2439.4,2.04966]
[1725238113435,22.04894179,2440.0,2439.4,2.04966]
[1725238113619,22.04894179,2440.0,2439.6,2.04951]
[1725238114643,2.44182418,2439.9,2439.6,2.04951]
[1725238114799,2.3404,2439.5,2438.9,2.05007]
[1725238114997,2.3404,2439.5,2438.4,2.2951]
[1725238114998,22.3004,2439.5,2438.5,2.05039]
[1725238115203,22.3004,2439.5,2438.8,2.05012]
[1725238115536,22.3004,2439.5,2438.9,0.08198875]
[1725238115760,22.3004,2439.5,2439.2,2.04978]
[1725238116197,24.53044,2439.5,2439.2,2.04978]
[1725238116510,24.53044,2439.5,2439.1,2.04988]
[1725238117325,24.53044,2439.5,2438.9,2.05008]
[1725238118223,19.96,2439.4,2438.9,2.05008]
[1725238119736,19.96,2439.4,2439.0,2.13197795]
[1725238119936,19.96,2439.4,2439.2,2.0498]
[1725238120936,19.96,2439.4,2439.1,2.04993]
[1725238121580,19.96,2439.4,2439.2,2.04984]
[1725238121913,19.96,2439.4,2439.1,2.04993]
[1725238123238,19.96,2439.4,2439.0,2.04998]
[1725238123429,19.96,2439.4,2439.2,2.04984]
[1725238124523,22.19004,2439.4,2439.2,2.04984]
[1725238124897,22.19004,2439.4,2439.0,2.04994]
[1725238126572,22.19004,2439.4,2439.0,4.09989]
[1725238127366,19.96,2439.4,2439.0,2.04994]
[1725238127529,19.96,2439.4,2439.3,2.04976]
[1725238127729,19.96,2439.4,2439.3,4.09952]
[1725238129970,2.2723,2439.9,2439.6,2.04949]
[1725238130476,4.49553,2439.9,2439.6,2.04949]
[1725238131977,19.96,2439.8,2439.7,4.09886]
[1725238134343,19.96,2439.8,2439.7,2.04943]
[1725238135980,2.3685,2440.0,2439.8,2.04934]
[1725238137059,2.3685,2440.0,2439.6,5.04951]
[1725238137255,2.60535,2440.0,2439.4,2.04964]
[1725238138208,2.60535,2440.0,2439.2,2.04983]
[1725238138209,4.65454,2440.0,2439.2,2.04983]
[1725238138350,2.3685,2439.9,2439.2,2.04983]
[1725238138541,0.465454,2439.8,2439.2,2.04983]
[1725238138984,22.3285,2439.7,2439.0,2.04999]
[1725238139286,19.96,2439.6,2439.0,2.04999]
[1725238139852,19.96,2439.6,2439.1,2.04991]
[1725238140281,19.96,2439.6,2439.2,2.04983]
[1725238141272,19.96,2439.6,2439.1,3.0]
[1725238141467,22.19285,2439.6,2439.1,3.0]
[1725238141885,22.19285,2439.6,2439.0,2.04999]
[1725238142189,2.492,2439.5,2439.0,2.04999]
[1725238144993,19.96,2439.4,2439.0,2.04999]
[1725238145188,22.428485,2439.4,2439.0,2.04999]
[1725238146497,22.428485,2439.4,2438.8,7.45422739]
[1725238146701,22.428485,2439.4,2438.8,5.40407739]
[1725238146920,22.428485,2439.4,2438.8,7.45418739]
[1725238147056,22.428485,2439.4,2438.8,5.40406739]
[1725238147456,22.428485,2439.4,2438.9,2.05004]
[1725238148074,22.428485,2439.4,2439.0,2.05001]
[1725238148801,22.428485,2439.4,2439.0,2.04999]
[1725238148802,19.96,2439.4,2439.0,2.04999]
[1725238148999,19.96,2439.4,2439.2,2.0498]
[1725238149669,19.96,2439.4,2439.2,4.09959]
[1725238150182,19.96,2439.4,2439.3,4.09952]
[1725238150881,19.96,2439.7,2439.4,2.04961]
[1725238151199,19.96,2439.7,2439.6,4.09902]
[1725238151402,2.4889,2440.1,2439.6,4.09902]
[1725238151403,19.96,2439.9,2439.6,4.09902]
[1725238151695,19.96,2439.9,2439.7,2.0494]
[1725238152010,2.4889,2439.7,2439.2,2.04983]
[1725238152668,2.4889,2439.7,2439.0,5.13198939]
[1725238152669,22.4489,2439.6,2439.0,4.09991]
[1725238152874,19.96,2439.5,2439.0,2.04995]
[1725238156307,2.3558,2439.4,2439.0,2.04995]
[1725238156508,4.6327625,2439.4,2439.0,2.04995]
[1725238156887,24.5927625,2439.4,2439.0,2.04995]
[1725238158107,24.5927625,2439.4,2439.1,0.38538192]
[1725238158315,24.5927625,2439.4,2439.1,0.38539933]
[1725238159149,24.5927625,2439.4,2439.1,0.38422597]
[1725238160221,19.96,2439.4,2439.2,2.04984]
[1725238160425,19.96,2439.4,2439.3,4.09952]
[1725238162802,19.96,2439.9,2439.4,2.04963]
[1725238163033,20.20186,2439.9,2439.4,2.04963]
[1725238163545,20.20186,2439.9,2439.5,2.04959]
[1725238163723,19.96,2439.8,2439.5,2.04959]
[1725238164706,19.96,2439.8,2439.6,2.04949]
[1725238164933,19.96,2439.8,2439.7,2.04943]
[1725238168312,19.96,2439.8,2439.6,2.04948]
[1725238169154,19.96,2440.0,2439.6,2.04948]
[1725238169357,20.411032,2440.0,2439.6,2.04948]
[1725238169756,20.411032,2440.0,2439.7,2.0494]
[1725238169919,19.96,2440.0,2439.7,2.0494]
[1725238170112,19.96,2440.0,2439.6,2.04948]
[1725238171837,19.96,2440.0,2439.7,2.04943]
[1725238174325,19.96,2440.0,2439.6,2.04948]
[1725238174634,2.4865,2439.9,2439.6,2.04948]
[1725238174825,4.73115,2439.9,2439.6,2.04948]
[1725238175024,19.96,2439.8,2439.6,2.04948]
[1725238177035,19.96,2439.8,2439.2,5.40374739]
[1725238177236,19.96,2439.8,2439.2,2.04979]
[1725238177665,2.3274,2439.7,2439.2,2.04979]
[1725238177955,2.22874,2439.6,2439.2,2.04979]
[1725238179760,2.3274,2439.7,2439.4,2.04964]
[1725238180928,19.96,2439.6,2439.4,2.04964]
[1725238181649,19.96,2439.6,2439.2,4.09957]
[1725238181842,22.18874,2439.6,2439.3,2.04976]
[1725238182227,22.18874,2439.6,2439.2,2.04978]
[1725238183873,22.18874,2439.6,2439.0,4.09995]
[1725238184076,22.411614,2439.5,2439.0,2.04996]
[1725238184387,2.3626,2439.4,2439.0,2.04996]
[1725238184670,22.3226,2439.4,2438.8,2.05015]
[1725238185174,2.437225,2439.3,2438.9,2.0501]
[1725238185512,2.437225,2439.3,2438.8,2.05015]
[1725238186660,2.437225,2439.3,2438.8,2.05013]
[1725238187388,2.437225,2439.3,2438.9,2.0501]
[1725238188293,2.437225,2439.3,2439.0,2.05001]
[1725238188589,22.3226,2439.4,2439.0,2.05001]
[1725238189849,19.96,2439.3,2439.0,2.05001]
[1725238190490,19.96,2439.3,2439.2,2.04985]
[1725238190796,19.96,2439.3,2438.9,2.05007]
[1725238190951,22.19226,2439.3,2438.9,2.05007]
[1725238192504,24.33858,2439.2,2438.4,2.05051]
[1725238192719,23.97493556,2439.1,2438.5,2.05043]
[1725238193000,24.50426297,2439.1,2438.5,2.05043]
[1725238193204,2.3287,2439.0,2438.1,5.40470739]
[1725238193415,2.3287,2438.7,2438.1,2.05075]
[1725238193696,2.3287,2438.5,2438.1,2.05075]
[1725238193881,2.22887,2438.4,2437.9,2.05092]
[1725238194087,2.22887,2438.4,2437.7,2.05109]
[1725238194088,19.96,2438.3,2437.7,2.05109]
[1725238194258,2.3287,2438.2,2437.7,2.05109]
[1725238194459,19.96,2438.1,2437.7,2.05109]
[1725238195596,19.96,2438.1,2437.5,7.75781739]
[1725238195597,19.96,2438.1,2437.8,2.05102]
[1725238196714,19.96,2438.1,2437.9,2.05092]
[1725238197761,19.96,2438.1,2437.8,2.05102]
[1725238197965,22.18887,2438.1,2437.8,2.05102]
[1725238198211,2.2944,2438.0,2437.8,2.05102]
[1725238200508,19.96,2438.4,2437.9,3.4359907]
[1725238200703,19.96,2438.4,2438.3,7.45515739]
[1725238200873,19.96,2438.8,2438.5,2.05042]
[1725238201829,19.96,2438.8,2438.7,2.05027]
[1725238202172,19.96,2438.8,2438.7,7.45449739]
[1725238204418,19.96,2438.8,2438.7,4.10054]
[1725238207793,19.96,2439.2,2438.9,2.05009]
[1725238207996,20.25371108,2439.2,2438.9,2.05009]
[1725238208189,2.99371075,2439.1,2438.5,2.05039]
[1725238208392,2.32474218,2439.0,2438.5,2.05039]
[1725238208876,2.32474218,2439.0,2438.6,2.05034]
[1725238209099,2.32474218,2439.0,2438.5,2.05039]
[1725238209440,2.2648,2438.9,2438.4,2.05052]
[1725238209571,19.96,2438.8,2438.5,2.05043]
[1725238210374,19.96,2438.8,2438.6,2.05035]
[1725238210574,19.96,2438.8,2438.2,2.05065]
[1725238210830,2.2648,2438.6,2438.0,2.05085]
[1725238211043,2.3776,2438.4,2437.9,2.05093]
[1725238211195,2.3776,2438.4,2437.8,2.05098]
[1725238211576,2.3776,2438.4,2437.6,2.05119]
[1725238211577,2.3349,2438.3,2437.6,2.05112]
[1725238211801,2.77771,2438.3,2437.4,3.35395739]
[1725238212079,2.3349,2438.3,2438.0,2.0508]